bitfinex/quotes_SOLUSD_20250616
["timestamp","ask_amount","ask_price","bid_price","bid_amount"]
[1750091544974,4.71017563,157.86,157.83,14.79456676]
[1750091545285,8.45870411,157.87,157.83,14.79456676]
[1750091545475,4.71022475,157.86,157.83,14.79456676]
[1750091545671,8.45870411,157.87,157.83,14.79456676]
[1750091545996,4.71428436,157.86,157.83,14.79456676]
[1750091546293,13.17298847,157.85,157.8,13.99870411]
[1750091546506,4.71428436,157.84,157.8,13.99870411]
[1750091546800,8.45870411,157.85,157.8,13.99870411]
[1750091547003,4.7155842,157.84,157.8,13.99870411]
[1750091547295,8.45870411,157.85,157.81,6.33663778]
[1750091547492,4.71565005,157.84,157.81,6.33663778]
[1750091547700,8.45870411,157.85,157.81,14.79534189]
[1750091547881,4.71565005,157.84,157.81,14.79534189]
[1750091548083,8.45870411,157.85,157.81,14.79534189]
[1750091548291,4.71565005,157.84,157.81,14.79534189]
[1750091548492,8.45870411,157.85,157.81,14.79534189]
[1750091548699,4.71661403,157.84,157.81,14.79534189]
[1750091548990,4.71661403,157.83,157.81,14.79534189]
[1750091549173,8.45870411,157.85,157.81,6.33663778]
[1750091549373,4.72143917,157.84,157.81,14.79534189]
[1750091549700,4.72143917,157.83,157.81,14.79534189]
[1750091549897,8.45870411,157.85,157.81,14.79534189]
[1750091550089,4.72143513,157.84,157.81,14.79534189]
[1750091550285,4.72143513,157.83,157.81,14.79534189]
[1750091550501,8.45870411,157.86,157.81,14.79534189]
[1750091550699,4.72218387,157.85,157.81,14.79534189]
[1750091550909,4.72218387,157.84,157.81,14.79534189]
[1750091551092,4.72218387,157.83,157.81,14.79534189]
[1750091551279,8.45870411,157.86,157.81,14.79534189]
[1750091551481,4.72848183,157.85,157.81,14.79534189]
[1750091551694,4.72848183,157.84,157.81,14.79534189]
[1750091552004,4.72848183,157.83,157.81,14.79534189]
[1750091552217,8.45870411,157.86,157.81,14.79534189]
[1750091552384,4.72848406,157.85,157.81,14.79534189]
[1750091552586,4.72848406,157.84,157.81,14.79534189]
[1750091552784,4.73330609,157.83,157.81,14.79534189]
[1750091552985,4.73330609,157.82,157.81,14.79534189]
[1750091553513,8.45870411,157.86,157.81,14.79534189]
[1750091553687,4.7335477,157.85,157.81,14.79534189]
[1750091553886,4.7335477,157.84,157.81,14.79534189]
[1750091554192,4.7335477,157.83,157.81,14.79534189]
[1750091554399,8.45870411,157.86,157.81,14.79534189]
[1750091554597,4.73354487,157.85,157.81,14.79534189]
[1750091554806,4.73354487,157.84,157.82,8.45870411]
[1750091554984,4.71499972,157.9,157.83,34.45870411]
[1750091555185,8.45870411,157.85,157.8,11.87695829]
[1750091555381,13.19171423,157.84,157.8,11.87695829]
[1750091555589,1.556,157.85,157.78,8.45870411]
[1750091555590,13.19254392,157.83,157.78,8.45870411]
[1750091555791,13.19254392,157.83,157.75,22.18700474]
[1750091555792,13.19254392,157.82,157.77,8.45870411]
[1750091555992,4.73383981,157.81,157.77,8.45870411]
[1750091556218,4.73383981,157.8,157.77,8.45870411]
[1750091556432,4.73383981,157.79,157.78,6.3379389]
[1750091557106,8.45870411,157.82,157.78,6.3379389]
[1750091557338,4.73885264,157.81,157.78,6.3379389]
[1750091557628,13.19755675,157.8,157.75,14.79784832]
[1750091557825,4.73885264,157.79,157.78,8.45870411]
[1750091558521,4.73885264,157.79,157.78,14.79664301]
[1750091560024,4.73885264,157.79,157.78,8.45870411]
[1750091560391,27.556,157.85,157.78,34.45870411]
[1750091560392,10.01470411,157.85,157.78,34.45870411]
[1750091560594,4.73577497,157.84,157.8,8.45870411]
[1750091560889,4.73577497,157.83,157.81,8.45870411]
[1750091561094,10.01470411,157.85,157.81,8.45870411]
[1750091561289,4.73507503,157.84,157.81,8.45870411]
[1750091561526,4.73507503,157.83,157.81,8.45870411]
[1750091561692,4.73507503,157.82,157.81,8.45870411]
[1750091562092,4.73507503,157.82,157.81,14.79543815]
[1750091564014,4.73449996,157.82,157.81,14.79543815]
[1750091564413,4.73449996,157.82,157.8,8.45870411]
[1750091564734,4.73449996,157.81,157.8,8.45870411]
[1750091565124,10.01470411,157.85,157.8,8.45870411]
[1750091565340,4.73408396,157.84,157.8,8.45870411]
[1750091565516,4.73408396,157.83,157.8,8.45870411]
[1750091565715,4.73408396,157.82,157.8,8.45870411]
[1750091566014,10.01470411,157.85,157.8,8.45870411]
[1750091566213,4.73364589,157.84,157.81,6.33673404]
[1750091566452,4.73364589,157.83,157.81,6.33673404]
[1750091566741,4.73364589,157.82,157.81,6.33673404]
[1750091567109,14.74924991,157.85,157.81,6.33673404]
[1750091567335,4.73502031,157.84,157.81,6.33673404]
[1750091567537,4.73502031,157.83,157.81,6.33673404]
[1750091567847,4.73502031,157.82,157.81,6.33673404]
[1750091569340,4.73502031,157.82,157.78,6.3379389]
[1750091569515,13.19372442,157.81,157.78,32.3379389]
[1750091569714,4.73502031,157.8,157.78,32.3379389]
[1750091569913,4.73502031,157.79,157.78,32.3379389]
[1750091570323,4.73553843,157.79,157.78,32.3379389]
[1750091570716,8.45870411,157.81,157.78,32.3379389]
[1750091571011,4.73557818,157.8,157.78,32.3379389]
[1750091571215,4.73557818,157.79,157.78,32.3379389]
[1750091571416,4.73557818,157.79,157.78,6.3379389]
[1750091572523,4.73557818,157.79,157.77,8.45870411]
[1750091572721,8.45870411,157.82,157.77,8.45870411]
[1750091572935,4.7339248,157.81,157.77,8.45870411]
[1750091573137,4.73392268,157.8,157.77,8.45870411]
[1750091573336,4.73392268,157.79,157.77,8.45870411]
[1750091573541,8.45870411,157.82,157.77,8.45870411]
[1750091573745,4.73324537,157.81,157.77,8.45870411]
[1750091573981,4.73324537,157.8,157.77,8.45870411]
[1750091574119,4.73324537,157.79,157.77,8.45870411]
[1750091574421,8.45870411,157.82,157.78,6.3379389]
[1750091574627,4.73319213,157.81,157.78,6.3379389]
[1750091574828,4.73319213,157.8,157.78,6.3379389]
[1750091575045,4.73319213,157.79,157.78,6.3379389]
[1750091575643,4.73319213,157.79,157.76,8.45870411]
[1750091575851,8.45870411,157.78,157.74,6.33942785]
[1750091576026,13.19257,157.77,157.74,6.33942785]
[1750091576219,8.45870411,157.77,157.74,6.33942785]
[1750091576418,4.73416647,157.76,157.74,6.33942785]
[1750091576622,8.45870411,157.77,157.74,6.33942785]
[1750091576842,13.1929666,157.76,157.73,11.85978912]
[1750091577146,4.73426249,157.75,157.73,11.85978912]
[1750091577318,8.45870411,157.76,157.73,6.33978912]
[1750091577518,4.72994062,157.75,157.73,6.33978912]
[1750091577746,8.45870411,157.76,157.73,6.33978912]
[1750091577947,4.73137805,157.75,157.73,6.33978912]
[1750091578142,8.45870411,157.76,157.73,6.33978912]
[1750091578347,4.73136947,157.75,157.73,6.33978912]
[1750091578540,8.45870411,157.76,157.73,6.33978912]
[1750091578739,4.7312607,157.75,157.73,6.33978912]
[1750091578940,8.45870411,157.76,157.73,6.33978912]
[1750091579134,4.73135078,157.75,157.73,6.33978912]
[1750091579352,6.3725458,157.8,157.74,8.45870411]
[1750091579658,4.73089278,157.79,157.76,8.45870411]
[1750091579827,4.73089278,157.78,157.76,8.45870411]
[1750091580027,10.09670411,157.8,157.75,8.45870411]
[1750091580226,8.45870411,157.78,157.74,8.45870411]
[1750091580558,4.7288521,157.77,157.74,8.45870411]
[1750091580756,8.45870411,157.78,157.74,8.45870411]
[1750091580931,4.73041412,157.77,157.74,8.45870411]
[1750091581128,8.45870411,157.78,157.74,8.45870411]
[1750091581333,4.73043988,157.77,157.75,6.33914421]
[1750091581636,4.73043965,157.76,157.75,6.33914421]
[1750091582352,4.73044036,157.76,157.75,6.33914421]
[1750091582543,8.45870411,157.79,157.75,6.33914421]
[1750091582743,4.7288544,157.78,157.75,6.33914421]
[1750091582951,4.7288544,157.77,157.75,6.33914421]
[1750091583244,8.45870411,157.79,157.75,6.33914421]
[1750091583448,4.72882914,157.78,157.75,6.33914421]
[1750091583663,4.72882914,157.77,157.75,6.33914421]
[1750091583835,1.638,157.8,157.75,6.33914421]
[1750091584036,8.45870411,157.78,157.75,6.33914421]
[1750091584237,4.72883008,157.77,157.75,6.33914421]
[1750091584540,13.18753419,157.76,157.7,8.45870411]
[1750091584855,4.72883008,157.75,157.68,18.64964886]
[1750091585050,4.72883008,157.74,157.7,8.45870411]
[1750091585260,8.45870411,157.75,157.7,8.45870411]
[1750091585435,4.72870831,157.74,157.71,6.34075201]
[1750091585762,4.72870831,157.74,157.66,17.08967638]
[1750091585763,8.45870411,157.72,157.65,8.45870411]
[1750091585935,8.45870411,157.72,157.63,14.80267416]
[1750091585936,8.45870411,157.68,157.63,14.80267416]
[1750091586133,8.45870411,157.68,157.63,6.34397005]
[1750091586335,8.45870411,157.67,157.62,21.88303697]
[1750091586536,8.45870411,157.68,157.63,8.45870411]
[1750091587561,8.45870411,157.68,157.63,6.34361999]
[1750091587859,8.45870411,157.67,157.63,6.34361999]
[1750091588843,8.45870411,157.66,157.62,21.88300572]
[1750091589059,8.45870411,157.64,157.62,15.53878843]
[1750091589257,8.45870411,157.63,157.62,15.53878843]
[1750091589458,8.45870411,157.64,157.62,21.88316097]
[1750091590045,8.45870411,157.64,157.62,15.53878843]
[1750091590247,8.45870411,157.63,157.62,15.53878843]
[1750091590758,8.45870411,157.64,157.62,15.53878843]
[1750091591071,8.45870411,157.63,157.62,15.53878843]
[1750091595758,40.05952314,157.68,157.62,21.88316097]
[1750091598759,8.45870411,157.64,157.62,15.53878843]
[1750091599276,8.45870411,157.64,157.62,21.88305562]
[1750091599581,8.45870411,157.65,157.62,21.88305562]
[1750091599775,11.03229293,157.67,157.62,15.53878843]
[1750091599987,8.45870411,157.65,157.62,15.53878843]
[1750091600876,8.45870411,157.64,157.62,15.53878843]
[1750091601458,11.03227442,157.67,157.62,15.53878843]
[1750091601667,1.94952314,157.68,157.62,21.88311815]
[1750091601668,8.45870411,157.66,157.62,21.88311815]
[1750091601860,8.45870411,157.65,157.62,21.88311815]
[1750091602182,8.45870411,157.65,157.62,15.53878843]
[1750091602369,8.45870411,157.65,157.62,21.88310908]
[1750091608871,8.45870411,157.65,157.62,15.53878843]
[1750091609080,8.45870411,157.64,157.62,15.53878843]
[1750091610174,11.76488317,157.65,157.62,15.53878843]
[1750091610682,11.76488317,157.65,157.62,21.88315084]
[1750091610890,3.30617906,157.65,157.62,30.34185495]
[1750091612586,13.15085361,157.66,157.62,30.34185495]
[1750091612775,8.45870411,157.66,157.62,30.34185495]
[1750091612975,13.15085361,157.66,157.62,30.34185495]
[1750091613577,8.45870411,157.66,157.62,30.34185495]
[1750091614090,13.15484605,157.66,157.62,30.34185495]
[1750091615186,8.45870411,157.66,157.62,21.88315084]
[1750091615367,13.15832595,157.66,157.62,30.34185495]
[1750091616674,4.70305095,157.65,157.62,30.34185495]
[1750091618396,8.45870411,157.66,157.62,30.34185495]
[1750091618593,4.70765626,157.65,157.62,30.34185495]
[1750091618807,8.45870411,157.66,157.62,30.34185495]
[1750091619097,4.70765649,157.65,157.62,30.34185495]
[1750091619409,8.45870411,157.66,157.62,21.88315084]
[1750091619581,4.70765696,157.65,157.62,21.88315084]
[1750091619785,8.45870411,157.66,157.62,21.88315084]
[1750091619982,4.70836152,157.65,157.62,21.88315084]
[1750091620178,8.45870411,157.66,157.62,21.88315084]
[1750091620378,4.7083656,157.65,157.62,21.88315084]
[1750091620605,4.7083656,157.64,157.62,30.34185495]
[1750091620811,8.45870411,157.66,157.62,30.34185495]
[1750091620970,4.71365565,157.65,157.62,30.34185495]
[1750091621170,4.71365565,157.64,157.62,30.34185495]
[1750091621494,8.45870411,157.66,157.62,30.34185495]
[1750091621674,4.71437036,157.65,157.62,30.34185495]
[1750091621869,4.71437036,157.64,157.62,30.34185495]
[1750091622178,8.45870411,157.66,157.62,30.34185495]
[1750091622379,4.71696954,157.65,157.62,30.34185495]
[1750091622690,4.71696954,157.64,157.62,21.88315084]
[1750091622990,8.45870411,157.65,157.62,21.88315084]
[1750091623178,4.71694573,157.64,157.62,21.88315084]
[1750091623500,4.71697095,157.63,157.62,15.53878843]
[1750091623793,8.45870411,157.64,157.62,15.53878843]
[1750091623996,4.71777802,157.63,157.62,15.53878843]
[1750091624498,4.71777802,157.63,157.62,21.88316097]
[1750091625090,4.72312388,157.63,157.62,21.88316097]
[1750091625895,4.72312388,157.63,157.62,15.53878843]
[1750091627999,4.73079089,157.63,157.62,15.53878843]
[1750091630604,17.94048759,157.63,157.62,15.53878843]
[1750091630801,17.95311244,157.63,157.62,15.53878843]
[1750091631271,9.49440833,157.63,157.62,15.53878843]
[1750091631468,4.74341574,157.63,157.62,15.53878843]
[1750091632201,9.4978433,157.63,157.62,15.53878843]
[1750091632502,9.49786798,157.63,157.62,15.53878843]
[1750091636306,9.51088812,157.63,157.62,15.53878843]
[1750091639184,9.51051413,157.63,157.62,15.53878843]
[1750091641820,9.5102683,157.63,157.62,15.53878843]
[1750091641988,9.51015845,157.63,157.62,15.53878843]
[1750091646604,4.75570621,157.63,157.62,15.53878843]
[1750091647619,14.38311908,157.63,157.62,15.53878843]
[1750091648241,20.72708913,157.63,157.62,15.53878843]
[1750091648889,25.48301645,157.63,157.62,15.53878843]
[1750091649315,51.48301645,157.63,157.62,10.77759547]
[1750091649506,53.03781645,157.63,157.62,10.77759547]
[1750091649712,78.87781645,157.63,157.62,10.77759547]
[1750091650306,78.87528868,157.63,157.62,10.77759547]
[1750091651009,81.90222442,157.63,157.62,10.77759547]
[1750091652293,74.28778888,157.63,157.62,10.77759547]
[1750091652500,81.90222442,157.63,157.62,10.77759547]
[1750091653190,81.89774248,157.63,157.62,10.77759547]
[1750091654219,55.89774248,157.63,157.62,10.77759547]
[1750091654420,75.26944929,157.63,157.62,10.77759547]
[1750091654724,81.61341934,157.63,157.62,10.77759547]
[1750091655900,65.76482547,157.63,157.62,10.77759547]
[1750091656106,75.26392253,157.63,157.62,10.77759547]
[1750091656301,81.60789258,157.63,157.62,10.77759547]
[1750091658013,44.674374,157.63,157.62,10.77759547]
[1750091658196,75.26371663,157.63,157.62,10.77759547]
[1750091658398,14.25448109,157.63,157.62,18.39203101]
[1750091658618,9.49889116,157.63,157.62,24.73640355]
[1750091658820,9.49815162,157.63,157.62,24.73640355]
[1750091659010,9.49815162,157.63,157.62,17.12196801]
[1750091659215,9.49815162,157.63,157.62,24.73640355]
[1750091660528,4.74880899,157.63,157.62,24.73640355]
[1750091660718,9.49744747,157.63,157.62,24.73640355]
[1750091661116,9.49744747,157.63,157.62,20.95833159]
[1750091661817,9.49776462,157.63,157.62,20.95833159]
[1750091663350,4.74888231,157.63,157.62,20.95833159]
[1750091663643,40.24515163,157.63,157.62,6.99952351]
[1750091663930,47.85958717,157.63,157.62,6.99952351]
[1750091664228,54.20355722,157.63,157.62,6.99952351]
[1750091664405,49.45461412,157.63,157.62,6.99952351]
[1750091664602,54.20435256,157.63,157.62,6.99952351]
[1750091666320,47.86038251,157.63,157.62,6.99952351]
[1750091667335,47.86072204,157.63,157.62,6.99952351]
[1750091669428,40.2462865,157.63,157.62,6.99952351]
[1750091669619,35.49896028,157.63,157.62,6.99952351]
[1750091669824,40.2462865,157.63,157.62,6.99952351]
[1750091670023,26.0,157.63,157.62,6.99952351]
[1750091670221,35.49815746,157.63,157.62,6.99952351]
[1750091670722,40.2464532,157.63,157.62,6.99952351]
[1750091672318,14.2464532,157.63,157.62,6.99952351]
[1750091672835,9.49737447,157.63,157.62,6.99952351]
[1750091673013,14.24691994,157.63,157.62,6.99952351]
[1750091674940,14.24784864,157.63,157.62,6.99952351]
[1750091675441,20.59181869,157.63,157.62,6.99952351]
[1750091676124,14.24784864,157.63,157.62,6.99952351]
[1750091677619,28.20625423,157.63,157.62,6.99952351]
[1750091678542,28.20661815,157.63,157.62,6.99952351]
[1750091679552,14.24821256,157.63,157.62,6.99952351]
[1750091680229,80.02661815,157.63,157.62,6.99952351]
[1750091680413,66.06821256,157.63,157.62,6.99952351]
[1750091680748,72.41218261,157.63,157.62,6.99952351]
[1750091680948,46.59293362,157.63,157.62,6.99952351]
[1750091681457,46.59277495,157.63,157.62,6.99952351]
[1750091682021,40.2488049,157.63,157.62,6.99952351]
[1750091682625,54.20721049,157.63,157.62,6.99952351]
[1750091682836,51.46486964,157.63,157.62,6.99952351]
[1750091683239,46.59277495,157.63,157.62,6.99952351]
[1750091683445,51.46486964,157.63,157.62,6.99952351]
[1750091683748,14.2488049,157.63,157.62,11.8716182]
[1750091684051,9.49973293,157.63,157.62,6.99952351]
[1750091684240,14.24936475,157.63,157.62,6.99952351]
[1750091684753,9.49973293,157.63,157.62,13.34389605]
[1750091685153,9.49973293,157.63,157.62,6.99952351]
[1750091686332,4.75025458,157.63,157.62,6.99952351]
[1750091686934,4.74962875,157.64,157.62,6.99952351]
[1750091687150,4.74987039,157.63,157.62,6.99952351]
[1750091688234,9.4995158,157.63,157.62,6.99952351]
[1750091688548,4.74987039,157.63,157.62,6.99952351]
[1750091688743,9.4995158,157.63,157.62,6.99952351]
[1750091689858,4.74987039,157.63,157.62,6.99952351]
[1750091690147,9.4995158,157.63,157.62,6.99952351]
[1750091691155,4.74987039,157.63,157.62,6.99952351]
[1750091691454,9.4995158,157.63,157.62,6.99952351]
[1750091691654,4.74987039,157.63,157.62,6.99952351]
[1750091691833,9.4995158,157.63,157.62,6.99952351]
[1750091692037,4.74987039,157.63,157.62,6.99952351]
[1750091692337,9.4995158,157.63,157.62,6.99952351]
[1750091692538,4.74987039,157.63,157.62,6.99952351]
[1750091693326,9.49969714,157.63,157.62,6.99952351]
[1750091693527,4.74987039,157.63,157.62,6.99952351]
[1750091693726,9.49969714,157.63,157.62,6.99952351]
[1750091693955,4.74987039,157.63,157.62,6.99952351]
[1750091694160,9.49969714,157.63,157.62,6.99952351]
[1750091694350,4.74987039,157.63,157.62,6.99952351]
[1750091694643,9.49969714,157.63,157.62,6.99952351]
[1750091695434,4.74982675,157.63,157.62,6.99952351]
[1750091695639,4.75033504,157.63,157.62,6.99952351]
[1750091695838,9.50016179,157.63,157.62,6.99952351]
[1750091696048,4.75033504,157.63,157.62,6.99952351]
[1750091696250,9.50016179,157.63,157.62,6.99952351]
[1750091696455,4.75033504,157.63,157.62,6.99952351]
[1750091696750,9.50016179,157.63,157.62,6.99952351]
[1750091697365,4.75033504,157.63,157.62,6.99952351]
[1750091697541,14.37225648,157.63,157.62,6.99952351]
[1750091697958,9.50016179,157.63,157.62,6.99952351]
[1750091698361,9.50076347,157.63,157.62,6.99952351]
[1750091700276,15.84473352,157.63,157.62,6.99952351]
[1750091700437,20.71682821,157.63,157.62,6.99952351]
[1750091701641,46.53682821,157.63,157.62,6.99952351]
[1750091701964,74.34055135,157.63,157.62,6.99952351]
[1750091703841,74.34075179,157.63,157.62,6.99952351]
[1750091706774,74.33976096,157.63,157.62,6.99952351]
[1750091714273,112.44976096,157.63,157.62,6.99952351]
[1750091714575,86.44976096,157.63,157.62,6.99952351]
[1750091714962,81.69961463,157.63,157.62,6.99952351]
[1750091715162,86.44793779,157.63,157.62,6.99952351]
[1750091716465,105.09758665,157.63,157.62,6.99952351]
[1750091717553,100.34926349,157.63,157.62,6.99952351]
[1750091717754,105.09657229,157.63,157.62,6.99952351]
[1750091718272,86.44692343,157.63,157.62,6.99952351]
[1750091720579,84.92752343,157.63,157.62,6.99952351]
[1750091720767,80.18021463,157.63,157.62,6.99952351]
[1750091720968,84.9267035,157.63,157.62,6.99952351]
[1750091723680,103.57594397,157.63,157.62,6.99952351]
[1750091724110,105.19864397,157.63,157.62,6.99952351]
[1750091724258,82.75964886,157.59,157.5,4.99795682]
[1750091724581,38.11,157.53,157.47,4.87209469]
[1750091724877,1.5824,157.64,157.53,6.3479972]
[1750091725069,14.35759508,157.63,157.59,4.87209469]
[1750091725376,19.09966595,157.62,157.58,4.87209469]
[1750091725577,9.48453151,157.61,157.58,4.87209469]
[1750091725877,9.48453151,157.6,157.59,4.87209469]
[1750091726878,9.48453151,157.6,157.59,13.9583639]
[1750091727277,21.1862763,157.63,157.59,29.82231465]
[1750091727479,9.48204993,157.62,157.59,22.20953105]
[1750091727665,21.1862763,157.63,157.59,22.20953105]
[1750091727867,21.1862763,157.63,157.6,18.64964886]
[1750091728677,21.1862763,157.63,157.62,7.6127836]
[1750091728999,21.1862763,157.63,157.62,13.95715614]
[1750091732972,21.1862763,157.63,157.62,32.606805]
[1750091733364,21.1862763,157.63,157.62,6.34437254]
[1750091733565,21.1862763,157.63,157.62,13.95715614]
[1750091733758,21.1862763,157.63,157.62,6.34437254]
[1750091733990,21.1862763,157.63,157.62,13.95715614]
[1750091734305,21.1862763,157.63,157.62,6.34437254]
[1750091734599,21.1862763,157.63,157.62,13.95715614]
[1750091747694,7.6127836,157.67,157.62,13.95715614]
[1750091747874,17.06957974,157.66,157.62,13.95715614]
[1750091748073,9.45679614,157.65,157.62,13.95715614]
[1750091748277,7.6127836,157.66,157.62,13.95715614]
[1750091748482,9.45708676,157.65,157.62,13.95715614]
[1750091748690,7.6127836,157.66,157.62,13.95715614]
[1750091748881,9.45708676,157.65,157.62,13.95715614]
[1750091749083,7.6127836,157.66,157.62,13.95715614]
[1750091749273,9.45708818,157.65,157.62,13.95715614]
[1750091749471,7.6127836,157.66,157.62,13.95715614]
[1750091749691,9.45708818,157.65,157.62,13.95715614]
[1750091749884,9.45808918,157.64,157.61,6.34461045]
[1750091750082,7.6127836,157.65,157.61,6.34461045]
[1750091750393,9.45735576,157.64,157.61,6.34461045]
[1750091750691,7.6127836,157.65,157.61,6.34461045]
[1750091750901,9.45740798,157.64,157.61,6.34461045]
[1750091751091,7.6127836,157.64,157.61,6.34461045]
[1750091751986,7.6127836,157.65,157.61,6.34461045]
[1750091752200,9.45885236,157.64,157.61,13.95739405]
[1750091752490,7.6127836,157.66,157.61,13.95739405]
[1750091752682,17.07150472,157.65,157.61,13.95739405]
[1750091752883,9.45872112,157.64,157.61,13.95739405]
[1750091753083,7.6127836,157.65,157.61,13.95739405]
[1750091753281,9.4577382,157.64,157.61,13.95739405]
[1750091753472,7.6127836,157.65,157.61,13.95739405]
[1750091753679,9.45787708,157.64,157.61,13.95739405]
[1750091753880,7.6127836,157.65,157.61,13.95739405]
[1750091754088,9.45787566,157.64,157.61,13.95739405]
[1750091754305,7.6127836,157.64,157.61,6.34461045]
[1750091754477,17.07080772,157.63,157.6,6.34507761]
[1750091754681,7.6127836,157.61,157.57,13.95916933]
[1750091754912,7.6127836,157.61,157.57,6.34638573]
[1750091755275,7.6127836,157.6,157.57,6.34638573]
[1750091756693,11.07127557,157.63,157.57,6.34638573]
[1750091756881,7.6127836,157.6,157.57,6.34638573]
[1750091757281,4.72720645,157.63,157.57,13.95916933]
[1750091757483,9.46117264,157.62,157.58,7.6127836]
[1750091757784,9.46117264,157.61,157.57,6.34638573]
[1750091757996,7.6127836,157.63,157.58,7.6127836]
[1750091758189,9.4608718,157.62,157.57,22.21235006]
[1750091758398,7.6127836,157.63,157.59,7.6127836]
[1750091758589,9.46042994,157.62,157.59,7.6127836]
[1750091758789,7.6127836,157.63,157.59,7.6127836]
[1750091758988,9.46042852,157.62,157.59,7.6127836]
[1750091759198,7.6127836,157.63,157.59,7.6127836]
[1750091759519,9.46043692,157.62,157.6,6.34517766]
[1750091759810,7.6127836,157.63,157.6,6.34517766]
[1750091760012,9.46213092,157.62,157.6,6.34517766]
[1750091760200,7.6127836,157.63,157.6,6.34517766]
[1750091760509,9.46211374,157.62,157.6,6.34517766]
[1750091760712,7.6127836,157.66,157.61,7.6127836]
[1750091760916,9.46135471,157.65,157.61,7.6127836]
[1750091761217,9.46135471,157.64,157.61,7.6127836]
[1750091761523,4.7307434,157.65,157.62,7.6127836]
[1750091761688,9.46208768,157.64,157.62,7.6127836]
[1750091761888,4.7307434,157.65,157.62,13.95694769]
[1750091762088,33.6127836,157.66,157.62,13.95694769]
[1750091762089,9.46208486,157.64,157.62,13.95694769]
[1750091762291,9.46208486,157.63,157.62,6.34416409]
[1750091762690,4.7307434,157.65,157.62,6.34416409]
[1750091762999,7.6127836,157.63,157.6,6.34517766]
[1750091763320,14.1947576,157.64,157.6,13.95796126]
[1750091763321,9.4640142,157.62,157.6,13.95796126]
[1750091763489,12.343527,157.64,157.6,13.95796126]
[1750091763692,9.46577434,157.63,157.6,13.95796126]
[1750091763886,4.7307434,157.64,157.61,7.6127836]
[1750091764126,9.46551322,157.63,157.61,7.6127836]
[1750091764415,12.343527,157.65,157.61,7.6127836]
[1750091764712,14.19610636,157.64,157.61,7.6127836]
[1750091764923,9.46536296,157.63,157.61,7.6127836]
[1750091765221,12.343527,157.65,157.61,7.6127836]
[1750091765401,14.19973526,157.64,157.6,13.95796126]
[1750091765719,9.46905207,157.63,157.6,13.95796126]
[1750091765924,9.46905207,157.62,157.6,13.95796126]
[1750091766105,4.7307434,157.64,157.6,13.95796126]
[1750091766305,9.46926276,157.63,157.6,13.95796126]
[1750091766522,9.46926276,157.62,157.6,13.95796126]
[1750091766724,7.6127836,157.65,157.6,13.95796126]
[1750091766933,14.2081783,157.64,157.6,13.95796126]
[1750091767104,9.47318938,157.63,157.6,13.95796126]
[1750091767302,9.47318938,157.62,157.6,13.95796126]
[1750091767502,13.95599518,157.65,157.6,13.95796126]
[1750091767714,14.20893589,157.64,157.6,13.95796126]
[1750091767897,9.4731444,157.64,157.6,13.95796126]
[1750091768103,13.95602872,157.65,157.6,13.95796126]
[1750091768312,4.73582188,157.64,157.6,13.95796126]
[1750091768506,13.95602872,157.65,157.6,13.95796126]
[1750091768705,12.34942461,157.64,157.6,13.95796126]
[1750091768906,4.73663665,157.63,157.6,13.95796126]
[1750091769152,7.6127836,157.64,157.6,13.95796126]
[1750091769629,4.73684772,157.63,157.61,7.6127836]
[1750091769817,4.74228857,157.65,157.62,7.6127836]
[1750091770009,4.74228857,157.64,157.61,7.6127836]
[1750091770210,33.6127836,157.66,157.61,7.6127836]
[1750091770426,4.74245819,157.65,157.61,7.6127836]
[1750091770603,4.74245819,157.64,157.61,7.6127836]
[1750091770905,33.6127836,157.66,157.61,7.6127836]
[1750091771106,4.74311821,157.65,157.61,7.6127836]
[1750091771327,4.73719561,157.63,157.61,7.6127836]
[1750091771665,9.47439123,157.62,157.61,13.95755867]
[1750091774216,9.48330084,157.62,157.61,13.95755867]
[1750091777023,9.49642729,157.62,157.61,13.95755867]
[1750091781036,9.4978591,157.62,157.61,13.95755867]
[1750091782815,9.4977867,157.62,157.61,13.95755867]
[1750091784135,4.74857528,157.65,157.61,29.81949636]
[1750091784430,26.0,157.66,157.61,22.20671276]
[1750091784431,9.49762378,157.64,157.61,22.20671276]
[1750091784615,9.49762378,157.63,157.61,22.20671276]
[1750091784815,26.0,157.66,157.61,22.20671276]
[1750091785038,14.24539468,157.65,157.61,22.20671276]
[1750091785243,4.74642916,157.68,157.61,111.00671276]
[1750091785443,14.24145656,157.67,157.62,18.64964886]
[1750091785618,27.92924066,157.7,157.62,18.64964886]
[1750091785619,27.92924066,157.7,157.66,7.6127836]
[1750091785937,14.24060008,157.69,157.67,7.6127836]
[1750091786140,14.24060008,157.68,157.67,7.6127836]
[1750091786814,14.24060008,157.68,157.67,13.95514422]
[1750091787212,9.49446282,157.68,157.67,13.95514422]
[1750091788345,4.74723141,157.68,157.67,102.75514422]
[1750091788526,4.74067167,157.71,157.67,102.75514422]
[1750091788710,9.48594868,157.7,157.67,95.14236062]
[1750091789040,4.740577,157.71,157.69,7.6127836]
[1750091789223,19.83369132,157.72,157.7,7.6127836]
[1750091789434,9.48589208,157.71,157.7,7.6127836]
[1750091791245,9.4745684,157.71,157.7,7.6127836]
[1750091791757,9.4745684,157.71,157.7,13.95393769]
[1750091792262,19.83369132,157.72,157.7,13.95393769]
[1750091792468,19.83369132,157.72,157.71,7.6127836]